[Event "WYCC 2018 G16"]
[Site "Halkidiki"]
[Date "2018.10.27"]
[Round "8"]
[White "Yurasova, Daria"]
[Black "Bulatova, Kamaliya"]
[Result "1/2-1/2"]
[ECO "E18"]
[WhiteElo "2193"]
[BlackElo "2108"]
[Annotator "NA"]
[PlyCount "85"]
[EventDate "2018.10.20"]
[EventType "swiss"]
[EventCountry "GRE"]
[SourceTitle "playchess.com"]
[Source "ChessBase"]
[SourceQuality "1"]
[TimeControl "40/5400+30:1800+30"]

1. d4 {[%emt 0:00:43]} Nf6 {[%emt 0:00:00]} 2. c4 {[%emt 0:00:11]} e6 {[%emt 0:00:00]} 3. Nf3 {[%emt 0:00:07]} b6 {[%emt 0:00:00]} 4. g3 {[%emt 0:01:04]} Bb7 {[%emt 0:00:00]} 5. Bg2 {[%emt 0:00:13]} Be7 {[%emt 0:00:00]} 6. O-O {[%emt 0:02:04]} O-O {[%emt 0:00:04]} 7. Nc3 {[%emt 0:00:45]} Ne4 {[%emt 0:00:06]} 8. Qc2 {[%emt 0:05:38]} Nxc3 {[%emt 0:00:13]} 9. bxc3 {[%emt 0:00:48]} c5 {[%emt 0:04:23]} 10. d5 {[%emt 0:07:55]} exd5 {[%emt 0:04:48]} 11. Nd2 {[%emt 0:01:52]} Bf6 {[%emt 0:02:51]} 12. cxd5 {[%emt 0:01:25]} Na6 {[%emt 0:01:01]} 13. Rb1 {[%emt 0:06:24]} Re8 {[%emt 0:05:21]} 14. Nc4 {[%emt 0:02:46]} d6 {[%emt 0:06:42]} 15. Bf4 {[%emt 0:00:52]} Be7 {[%emt 0:01:27]} 16. e4 {[%emt 0:06:41]} Nc7 {[%emt 0:06:20]} 17. Na5 {[%emt 0:12:17]} Bxd5 {[%emt 0:06:14]} 18. exd5 {[%emt 0:00:01]} bxa5 {[%emt 0:00:06]} 19. Qa4 {[%emt 0:00:48]} Bg5 {[%emt 0:03:43]} 20. Bxg5 {[%emt 0:02:10]} Qxg5 {[%emt 0:00:06]} 21. Qc6 {[%emt 0:02:01]} Rac8 {[%emt 0:02:43]} 22. Rb7 {[%emt 0:02:06]} Qd8 {[%emt 0:09:56]} 23. Rxa7 Re5 {[%emt 0:02:08]} 24. Qb7 {[%emt 0:14:13]} Re7 {[%emt 0:00:16]} 25. Bh3 {[%emt 0:10:35]} Rb8 {[%emt 0:02:48]} 26. Qc6 {[%emt 0:00:26]} Nxd5 {[%emt 0:00:55]} 27. Rxe7 {[%emt 0:01:16]} Nxe7 {[%emt 0:00:05]} 28. Qa4 {[%emt 0:00:05]} Nd5 {[%emt 0:04:25]} 29. Qc4 {[%emt 0:00:53]} Nf6 {[%emt 0:02:25]} 30. Rd1 {[%emt 0:03:39]} Qe7 {[%emt 0:01:58]} 31. Qa6 {[%emt 0:00:42]} d5 {[%emt 0:01:49]} 32. Qxa5 {[%emt 0:04:29]} Qe2 {[%emt 0:00:48]} 33. Rf1 {[%emt 0:00:00]} Ne4 {[%emt 0:01:05]} 34. Bg2 {[%emt 0:01:50]} Nd2 {[%emt 0:05:54]} 35. Rc1 {[%emt 0:01:21]} Qc4 {[%emt 0:00:34]} 36. Qc7 {[%emt 0:00:13]} Rf8 {[%emt 0:00:10]} 37. Rc2 {[%emt 0:05:29]} Qd3 {[%emt 0:09:21]} 38. Rc1 {[%emt 0:00:07]} c4 {[%emt 0:00:05]} 39. Qd7 {[%emt 0:03:35]} Ne4 {[%emt 0:00:29]} 40. Bxe4 {[%emt 0:00:00]} dxe4 {[%emt 0:00:00]} 41. Qd4 {[%emt 0:03:07]} Rd8 {[%emt 0:00:25]} 42. Qe5 {[%emt 0:01:16]} Qe2 {[%emt 0:11:38]} 43. Rb1 {[%emt 0:05:12]} 1/2-1/2

[Event "WYCC 2018 G16"]
[Site "Halkidiki"]
[Date "2018.10.27"]
[Round "8"]
[White "Berdnyk, Mariia"]
[Black "Salonika, Saina"]
[Result "1-0"]
[ECO "A45"]
[WhiteElo "2179"]
[BlackElo "2093"]
[Annotator "NA"]
[PlyCount "95"]
[EventDate "2018.10.20"]
[EventType "swiss"]
[EventCountry "GRE"]
[SourceTitle "playchess.com"]
[Source "ChessBase"]
[SourceQuality "1"]
[TimeControl "40/5400+30:1800+30"]

1. d4 {[%emt 0:00:00]} Nf6 {[%emt 0:00:00]} 2. Nc3 {[%emt 0:00:00]} d5 {[%emt 0:00:07]} 3. Bf4 {[%emt 0:00:00]} Bf5 {[%emt 0:01:11]} 4. e3 {[%emt 0:01:58]} e6 {[%emt 0:02:29]} 5. Bd3 {[%emt 0:00:49]} Bg6 {[%emt 0:12:20]} 6. Nf3 {[%emt 0:06:13]} Bd6 {[%emt 0:02:58]} 7. Ne5 {[%emt 0:04:25]} c6 {[%emt 0:12:35]} 8. Qf3 {[%emt 0:08:24]} Qe7 {[%emt 0:25:05]} 9. Bg5 {[%emt 0:16:28]} Nbd7 {[%emt 0:01:14]} 10. Nxd7 {[%emt 0:01:21]} Kxd7 {[%emt 0:00:13]} 11. Bxg6 {[%emt 0:01:14]} fxg6 {[%emt 0:05:01]} 12. O-O-O {[%emt 0:05:54]} h6 {[%emt 0:01:32]} 13. Bf4 {[%emt 0:02:24]} Bb4 {[%emt 0:01:39]} 14. Rd3 {[%emt 0:06:06]} Rhf8 {[%emt 0:02:07]} 15. Qe2 {[%emt 0:00:22]} g5 {[%emt 0:05:06]} 16. Be5 {[%emt 0:01:01]} Bxc3 {[%emt 0:01:04]} 17. Rxc3 {[%emt 0:00:04]} Ne4 {[%emt 0:00:05]} 18. Rb3 {[%emt 0:00:03]} b5 {[%emt 0:00:10]} 19. f3 {[%emt 0:02:22]} Nd6 {[%emt 0:00:07]} 20. Bxd6 {[%emt 0:04:15]} Qxd6 {[%emt 0:00:09]} 21. Kb1 {[%emt 0:03:15]} e5 {[%emt 0:05:27]} 22. dxe5 {[%emt 0:01:13]} Qxe5 {[%emt 0:00:09]} 23. Rd1 {[%emt 0:05:33]} Kc7 {[%emt 0:00:55]} 24. Qd2 {[%emt 0:01:04]} a5 {[%emt 0:01:09]} 25. Rd3 {[%emt 0:08:02]} Kb6 {[%emt 0:03:17]} 26. Rd4 {[%emt 0:02:06]} Qxh2 {[%emt 0:02:05]} 27. e4 {[%emt 0:00:25]} dxe4 {[%emt 0:00:10]} 28. Rd7 {[%emt 0:06:23]} exf3 {[%emt 0:03:06]} 29. Qe3+ {[%emt 0:01:01]} Ka6 {[%emt 0:00:05]} 30. Qc5 {[%emt 0:01:28]} Rf6 {[%emt 0:01:15]} 31. a4 {[%emt 0:01:16]} Qb8 {[%emt 0:02:04]} 32. gxf3 {[%emt 0:04:12]} bxa4 {[%emt 0:01:04]} 33. Rxg7 {[%emt 0:02:29]} Qb5 {[%emt 0:01:48]} 34. Qc3 {[%emt 0:00:49]} Re6 {[%emt 0:00:38]} 35. Rdd7 {[%emt 0:01:50]} Qb4 {[%emt 0:01:44]} 36. Qd3+ {[%emt 0:00:13]} Qb5 {[%emt 0:00:04]} 37. Qd4 {[%emt 0:00:39]} Re1+ {[%emt 0:01:43]} 38. Ka2 {[%emt 0:00:02]} Qb6 {[%emt 0:00:17]} 39. Qc4+ {[%emt 0:00:28]} Qb5 {[%emt 0:00:14]} 40. Qd4 {[%emt 0:00:00]} Qb6 {[%emt 0:00:00]} 41. Qc4+ {[%emt 0:12:02]} Qb5 {[%emt 0:00:22]} 42. Qf7 {[%emt 0:01:53]} Qb6 {[%emt 0:05:27]} 43. Rc7 {[%emt 0:03:11]} Qc5 {[%emt 0:08:22]} 44. Rc8 {[%emt 0:00:32]} Re7 {[%emt 0:00:39]} 45. Rxa8+ {[%emt 0:00:07]} Kb6 {[%emt 0:00:04]} 46. Qxe7 {[%emt 0:01:04]} Qd5+ {[%emt 0:00:53]} 47. Ka3 {[%emt 0:00:10]} Qxf3+ {[%emt 0:00:09]} 48. c3 {[%emt 0:00:12]} 1-0

[Event "WYCC 2018 G16"]
[Site "Halkidiki"]
[Date "2018.10.27"]
[Round "8"]
[White "Goltseva, Ekaterina"]
[Black "Meenal Gupta"]
[Result "1/2-1/2"]
[ECO "E59"]
[WhiteElo "2169"]
[BlackElo "2065"]
[Annotator "NA"]
[PlyCount "132"]
[EventDate "2018.10.20"]
[EventType "swiss"]
[EventCountry "GRE"]
[SourceTitle "playchess.com"]
[Source "ChessBase"]
[SourceQuality "1"]
[TimeControl "40/5400+30:1800+30"]

1. d4 {[%emt 0:00:00]} Nf6 {[%emt 0:00:00]} 2. c4 {[%emt 0:00:00]} e6 {[%emt 0:00:00]} 3. Nc3 {[%emt 0:00:00]} Bb4 {[%emt 0:00:00]} 4. e3 {[%emt 0:00:00]} O-O {[%emt 0:00:00]} 5. Bd3 {[%emt 0:00:00]} d5 {[%emt 0:00:06]} 6. Nf3 {[%emt 0:00:04]} c5 {[%emt 0:00:08]} 7. O-O {[%emt 0:00:21]} Nc6 {[%emt 0:00:05]} 8. a3 {[%emt 0:02:50]} Bxc3 {[%emt 0:00:44]} 9. bxc3 {[%emt 0:00:05]} dxc4 {[%emt 0:00:10]} 10. Bxc4 {[%emt 0:00:03]} Qc7 {[%emt 0:00:07]} 11. Qe2 {[%emt 0:14:05]} e5 {[%emt 0:02:39]} 12. d5 {[%emt 0:09:16]} e4 {[%emt 0:05:53]} 13. Nd2 {[%emt 0:16:58]} Ne7 {[%emt 0:11:23]} 14. Bb2 {[%emt 0:11:05]} Rd8 {[%emt 0:09:02]} 15. Rfd1 {[%emt 0:11:20]} Bf5 {[%emt 0:08:52]} 16. Nf1 {[%emt 0:09:25]} Nexd5 {[%emt 0:05:45]} 17. Bxd5 {[%emt 0:00:32]} Nxd5 {[%emt 0:00:21]} 18. Ng3 {[%emt 0:01:25]} Bg6 {[%emt 0:00:11]} 19. h4 {[%emt 0:03:23]} h6 {[%emt 0:21:05]} 20. h5 {[%emt 0:02:54]} Bh7 {[%emt 0:00:25]} 21. c4 {[%emt 0:00:29]} Nb6 {[%emt 0:00:06]} 22. Qg4 {[%emt 0:02:25]} f5 {[%emt 0:00:06]} 23. Nxf5 {[%emt 0:00:22]} Bxf5 {[%emt 0:00:01]} 24. Qxf5 {[%emt 0:00:06]} Nxc4 {[%emt 0:00:28]} 25. Bc3 {[%emt 0:00:47]} Qe7 {[%emt 0:08:13]} 26. Rd5 {[%emt 0:01:16]} Qf7 {[%emt 0:00:06]} 27. Rxd8+ {[%emt 0:08:58]} Rxd8 {[%emt 0:00:02]} 28. Qxc5 {[%emt 0:00:34]} b6 {[%emt 0:00:45]} 29. Qb5 {[%emt 0:03:29]} Qd5 {[%emt 0:04:59]} 30. Qa4 {[%emt 0:01:04]} a5 {[%emt 0:02:00]} 31. Bd4 {[%emt 0:00:46]} b5 {[%emt 0:01:00]} 32. Qc2 {[%emt 0:00:16]} Rd7 {[%emt 0:02:46]} 33. Qe2 {[%emt 0:00:48]} Ne5 {[%emt 0:01:21]} 34. Rc1 {[%emt 0:00:41]} Nc6 {[%emt 0:04:20]} 35. Rd1 {[%emt 0:01:02]} b4 {[%emt 0:05:37]} 36. axb4 {[%emt 0:00:10]} axb4 {[%emt 0:00:01]} 37. Qg4 {[%emt 0:00:35]} Ne5 {[%emt 0:02:09]} 38. Qg3 {[%emt 0:00:25]} Nd3 {[%emt 0:00:39]} 39. Qg6 {[%emt 0:00:46]} Rf7 {[%emt 0:03:04]} 40. Ra1 {[%emt 0:00:00]} Nxf2 {[%emt 0:00:00]} 41. Rc1 {[%emt 0:19:27]} Qd7 {[%emt 0:10:48]} 42. Rf1 {[%emt 0:04:26]} Nd3 {[%emt 0:00:39]} 43. Rxf7 {[%emt 0:00:26]} Qxf7 {[%emt 0:00:04]} 44. Qxe4 {[%emt 0:00:11]} Nc1 {[%emt 0:02:32]} 45. Qc2 {[%emt 0:00:47]} Nb3 {[%emt 0:00:19]} 46. Qc8+ {[%emt 0:04:54]} Kh7 {[%emt 0:00:14]} 47. Qc2+ {[%emt 0:00:03]} Kg8 {[%emt 0:00:07]} 48. Qc8+ {[%emt 0:00:12]} Kh7 {[%emt 0:00:08]} 49. Qc2+ {[%emt 0:00:06]} Kg8 {[%emt 0:00:11]} 50. Bb2 {[%emt 0:00:42]} Qe6 {[%emt 0:05:01]} 51. Kf2 {[%emt 0:01:22]} Na5 {[%emt 0:00:47]} 52. Qc5 {[%emt 0:01:19]} Nc4 {[%emt 0:01:34]} 53. Bd4 {[%emt 0:00:52]} b3 {[%emt 0:00:33]} 54. Qb5 {[%emt 0:01:13]} Nd6 {[%emt 0:00:31]} 55. Qd3 {[%emt 0:01:33]} Ne4+ {[%emt 0:00:30]} 56. Kg1 {[%emt 0:00:38]} Ng3 {[%emt 0:01:48]} 57. Kf2 {[%emt 0:00:51]} Nxh5 {[%emt 0:01:19]} 58. Qb5 {[%emt 0:00:34]} Nf6 {[%emt 0:00:30]} 59. Qb8+ {[%emt 0:00:18]} Kh7 {[%emt 0:00:16]} 60. Qb7 {[%emt 0:00:40]} Qf5+ {[%emt 0:00:25]} 61. Kg1 {[%emt 0:00:33]} Qd5 {[%emt 0:01:36]} 62. Qc7 {[%emt 0:00:29]} Kg6 {[%emt 0:02:30]} 63. Qg3+ {[%emt 0:00:23]} Qg5 {[%emt 0:00:52]} 64. Qb8 {[%emt 0:00:16]} Qd5 {[%emt 0:00:35]} 65. Qg3+ {[%emt 0:00:06]} Kh7 {[%emt 0:00:54]} 66. Qc7 {[%emt 0:00:09]} Kg6 {[%emt 0:03:08]} 1/2-1/2

[Event "WYCC 2018 G16"]
[Site "Halkidiki"]
[Date "2018.10.27"]
[Round "8"]
[White "Bach, Ngoc Thuy Duong"]
[Black "Staravoitava, Hanna"]
[Result "1-0"]
[ECO "E35"]
[WhiteElo "2161"]
[BlackElo "1768"]
[Annotator "NA"]
[PlyCount "91"]
[EventDate "2018.10.20"]
[EventType "swiss"]
[EventCountry "GRE"]
[SourceTitle "playchess.com"]
[Source "ChessBase"]
[SourceQuality "1"]
[TimeControl "40/5400+30:1800+30"]

1. d4 {[%emt 0:00:00]} Nf6 {[%emt 0:00:00]} 2. c4 {[%emt 0:00:00]} e6 {[%emt 0:00:00]} 3. Nc3 {[%emt 0:00:00]} Bb4 {[%emt 0:00:00]} 4. Qc2 {[%emt 0:00:00]} d5 {[%emt 0:00:00]} 5. cxd5 {[%emt 0:00:10]} exd5 {[%emt 0:00:08]} 6. Bg5 {[%emt 0:00:36]} h6 {[%emt 0:00:11]} 7. Bh4 {[%emt 0:00:36]} c5 {[%emt 0:03:26]} 8. dxc5 {[%emt 0:08:49]} O-O {[%emt 0:00:11]} 9. e3 {[%emt 0:00:42]} Be6 {[%emt 0:05:09]} 10. Nf3 {[%emt 0:14:05]} Nbd7 {[%emt 0:00:55]} 11. a3 {[%emt 0:01:02]} Bxc5 {[%emt 0:00:07]} 12. Be2 {[%emt 0:00:38]} Rc8 $14 {[%emt 0:01:37] LiveBook: 19 Games} 13. O-O {[%emt 0:02:34]} Be7 {[%emt 0:08:58]} 14. Qd1 {[%emt 0:06:28]} Nc5 {[%emt 0:08:39]} 15. Nd4 {[%emt 0:09:05]} Nfe4 {[%emt 0:05:46]} 16. Bxe7 {[%emt 0:05:16]} Qxe7 {[%emt 0:01:28]} 17. Rc1 {[%emt 0:02:22]} Nxc3 {[%emt 0:01:53]} 18. Rxc3 {[%emt 0:00:29]} Ne4 {[%emt 0:00:04]} 19. Rxc8 {[%emt 0:00:45]} Rxc8 {[%emt 0:00:08]} 20. Bg4 {[%emt 0:06:18]} Bxg4 {[%emt 0:18:37]} 21. Qxg4 {[%emt 0:00:08]} Rc4 {[%emt 0:00:19]} 22. Rd1 {[%emt 0:11:12]} Qc7 {[%emt 0:10:46]} 23. g3 {[%emt 0:04:28]} Rc1 {[%emt 0:02:03]} 24. Kg2 {[%emt 0:02:47]} Rxd1 {[%emt 0:00:58]} 25. Qxd1 {[%emt 0:00:05]} Qa5 {[%emt 0:01:27]} 26. Nf5 {[%emt 0:07:39]} Qd2 {[%emt 0:04:02]} 27. Qxd2 {[%emt 0:00:17]} Nxd2 {[%emt 0:00:05]} 28. Nd6 {[%emt 0:00:54]} Kf8 {[%emt 0:01:57]} 29. Nxb7 {[%emt 0:02:26]} Nc4 {[%emt 0:00:08]} 30. b3 {[%emt 0:00:04]} Nxa3 {[%emt 0:00:11]} 31. Kf3 {[%emt 0:00:05]} Ke7 {[%emt 0:01:03]} 32. Kf4 {[%emt 0:00:34]} Kf6 {[%emt 0:05:19]} 33. e4 {[%emt 0:00:10]} dxe4 {[%emt 0:02:50]} 34. Kxe4 {[%emt 0:00:06]} Ke7 {[%emt 0:01:46]} 35. Kd5 {[%emt 0:02:46]} Kd7 {[%emt 0:00:27]} 36. Nd6 {[%emt 0:00:23]} Ke7 {[%emt 0:03:17]} 37. Nc8+ {[%emt 0:00:13]} Kf6 {[%emt 0:01:29]} 38. Nxa7 {[%emt 0:00:09]} Kf5 {[%emt 0:00:24]} 39. Nc6 {[%emt 0:02:35]} Kg4 {[%emt 0:00:41]} 40. Ne5+ {[%emt 0:00:00]} Kh3 {[%emt 0:00:00]} 41. Nc4 {[%emt 0:15:55]} Nc2 {[%emt 0:02:18]} 42. Ne3 {[%emt 0:02:02]} Na3 {[%emt 0:00:39]} 43. b4 {[%emt 0:02:03]} Kxh2 {[%emt 0:00:16]} 44. Kc5 {[%emt 0:00:46]} Kg1 {[%emt 0:00:18]} 45. Nc4 {[%emt 0:00:12]} Nb1 {[%emt 0:01:35]} 46. Kd4 {[%emt 0:00:05]} 1-0

[Event "WYCC 2018 G16"]
[Site "Halkidiki"]
[Date "2018.10.27"]
[Round "8"]
[White "Gomez Barrera, Javiera Belen"]
[Black "Gombocz, Zsofia"]
[Result "1-0"]
[ECO "C77"]
[WhiteElo "2136"]
[BlackElo "2038"]
[Annotator "NA"]
[PlyCount "87"]
[EventDate "2018.10.20"]
[EventType "swiss"]
[EventCountry "GRE"]
[SourceTitle "playchess.com"]
[Source "ChessBase"]
[SourceQuality "1"]
[TimeControl "40/5400+30:1800+30"]

1. e4 {[%emt 0:00:00]} e5 {[%emt 0:00:00]} 2. Nf3 {[%emt 0:00:00]} Nc6 {[%emt 0:00:00]} 3. Bb5 {[%emt 0:00:00]} a6 {[%emt 0:00:00]} 4. Ba4 {[%emt 0:00:00]} Nf6 {[%emt 0:00:02]} 5. Qe2 {[%emt 0:00:00]} b5 {[%emt 0:03:25]} 6. Bb3 {[%emt 0:00:05]} Bc5 {[%emt 0:01:51]} 7. c3 {[%emt 0:00:43]} d6 {[%emt 0:04:02]} 8. O-O {[%emt 0:00:49]} O-O {[%emt 0:01:40]} 9. Rd1 {[%emt 0:01:21]} Bg4 {[%emt 0:06:33]} 10. h3 {[%emt 0:00:17]} Bxf3 {[%emt 0:00:20]} 11. Qxf3 {[%emt 0:00:13]} Bb6 {[%emt 0:01:37]} 12. d3 {[%emt 0:05:57]} h6 {[%emt 0:05:55]} 13. Nd2 {[%emt 0:06:42]} Na5 {[%emt 0:03:38]} 14. Bc2 {[%emt 0:00:30]} Nh7 {[%emt 0:01:19]} 15. Nf1 {[%emt 0:05:29]} Ng5 {[%emt 0:04:49]} 16. Qg3 {[%emt 0:09:02]} Qf6 {[%emt 0:07:47]} 17. b4 {[%emt 0:29:09]} Nc6 {[%emt 0:01:49]} 18. Bb3 {[%emt 0:00:33]} Ne7 {[%emt 0:12:55]} 19. Ne3 {[%emt 0:18:50]} Bxe3 {[%emt 0:05:35]} 20. Bxe3 {[%emt 0:01:04]} Ng6 {[%emt 0:01:56]} 21. Qg4 {[%emt 0:06:10]} Nf4 {[%emt 0:06:00]} 22. h4 {[%emt 0:02:15]} Nge6 {[%emt 0:00:53]} 23. g3 {[%emt 0:01:23]} Ng6 {[%emt 0:04:06]} 24. Qf5 {[%emt 0:02:27]} Qe7 {[%emt 0:06:30]} 25. a4 {[%emt 0:03:56]} Qd7 {[%emt 0:05:49]} 26. Qg4 {[%emt 0:02:39]} Kh7 {[%emt 0:02:31]} 27. d4 {[%emt 0:02:00]} Nc5 {[%emt 0:03:24]} 28. Qxd7 {[%emt 0:00:11]} Nxd7 {[%emt 0:00:05]} 29. axb5 {[%emt 0:00:48]} axb5 {[%emt 0:00:15]} 30. Rxa8 {[%emt 0:00:05]} Rxa8 {[%emt 0:00:08]} 31. Bxf7 {[%emt 0:00:08]} Nf6 {[%emt 0:01:18]} 32. f3 {[%emt 0:00:43]} Ra3 {[%emt 0:01:31]} 33. Rc1 {[%emt 0:00:36]} c6 {[%emt 0:01:20]} 34. Kf2 {[%emt 0:01:14]} Nd7 {[%emt 0:01:27]} 35. h5 {[%emt 0:01:35]} Ne7 {[%emt 0:02:08]} 36. Be6 {[%emt 0:00:32]} Nf8 {[%emt 0:00:59]} 37. Bf7 {[%emt 0:00:15]} Nd7 {[%emt 0:00:31]} 38. Rc2 {[%emt 0:00:45]} Nf6 {[%emt 0:01:35]} 39. dxe5 {[%emt 0:00:16]} dxe5 {[%emt 0:00:08]} 40. Bc5 {[%emt 0:00:00]} Neg8 {[%emt 0:00:00]} 41. Bd6 {[%emt 0:12:00]} Nd7 {[%emt 0:03:50]} 42. Bg6+ {[%emt 0:03:17]} Kh8 {[%emt 0:00:08]} 43. Bf5 {[%emt 0:06:39]} Ngf6 {[%emt 0:04:14]} 44. Rd2 {[%emt 0:06:10]} 1-0

[Event "WYCC 2018 G16"]
[Site "Halkidiki"]
[Date "2018.10.27"]
[Round "8"]
[White "Ouellet, Maili-Jade"]
[Black "Muetsch, Annmarie"]
[Result "0-1"]
[ECO "E77"]
[WhiteElo "2122"]
[BlackElo "2206"]
[Annotator "NA"]
[PlyCount "114"]
[EventDate "2018.10.20"]
[EventType "swiss"]
[EventCountry "GRE"]
[SourceTitle "playchess.com"]
[Source "ChessBase"]
[SourceQuality "1"]
[TimeControl "40/5400+30:1800+30"]

1. d4 {[%emt 0:00:00]} Nf6 {[%emt 0:00:00]} 2. c4 {[%emt 0:00:00]} g6 {[%emt 0:00:00]} 3. Nc3 {[%emt 0:00:00]} Bg7 {[%emt 0:00:00]} 4. e4 {[%emt 0:00:00]} d6 {[%emt 0:00:00]} 5. f4 {[%emt 0:00:00]} O-O {[%emt 0:00:18]} 6. Nf3 {[%emt 0:00:00]} c5 {[%emt 0:00:09]} 7. d5 {[%emt 0:00:00]} e6 {[%emt 0:00:09]} 8. Be2 {[%emt 0:00:02]} exd5 {[%emt 0:00:15]} 9. cxd5 {[%emt 0:00:05]} Bg4 {[%emt 0:00:49]} 10. O-O {[%emt 0:00:08]} Nbd7 {[%emt 0:01:20]} 11. h3 {[%emt 0:00:24]} Bxf3 {[%emt 0:00:05]} 12. Bxf3 {[%emt 0:00:04]} a6 {[%emt 0:00:15]} 13. g4 {[%emt 0:00:20]} b5 {[%emt 0:00:30]} 14. g5 {[%emt 0:00:30]} Ne8 {[%emt 0:00:07]} 15. Kg2 {[%emt 0:01:11]} Nb6 {[%emt 0:04:53]} 16. Qc2 {[%emt 0:09:35]} b4 $14 {[%emt 0:07:18]} 17. Ne2 {[%emt 0:06:30]} Nc7 {[%emt 0:01:34]} 18. Be3 {[%emt 0:04:09]} Re8 {[%emt 0:04:29]} 19. Bf2 {[%emt 0:00:39]} Nb5 {[%emt 0:06:02]} 20. Rac1 {[%emt 0:06:12]} Rc8 {[%emt 0:06:22]} 21. h4 {[%emt 0:03:41]} c4 {[%emt 0:10:07]} 22. h5 {[%emt 0:10:17]} c3 {[%emt 0:08:12]} 23. b3 {[%emt 0:00:59]} Nd7 {[%emt 0:03:07]} 24. hxg6 {[%emt 0:00:47]} hxg6 {[%emt 0:04:30]} 25. Rh1 {[%emt 0:14:04]} Nc5 {[%emt 0:04:07]} 26. Bxc5 {[%emt 0:02:10]} Rxc5 {[%emt 0:00:11]} 27. Qd3 {[%emt 0:04:50]} a5 {[%emt 0:08:42]} 28. Rh4 {[%emt 0:03:58]} a4 {[%emt 0:07:44]} 29. Rg4 {[%emt 0:04:53]} axb3 {[%emt 0:03:12]} 30. axb3 {[%emt 0:00:07]} Na3 {[%emt 0:04:28]} 31. f5 {[%emt 0:02:49]} c2 {[%emt 0:08:43]} 32. f6 {[%emt 0:00:38]} Bxf6 {[%emt 0:00:27]} 33. gxf6 {[%emt 0:00:06]} Qxf6 {[%emt 0:00:06]} 34. Qd2 {[%emt 0:04:25]} Qb2 {[%emt 0:02:47]} 35. Qxb4 {[%emt 0:02:18]} Nb1 {[%emt 0:00:59]} 36. Qa4 {[%emt 0:05:08]} Rec8 {[%emt 0:05:01]} 37. Rh4 {[%emt 0:04:09]} Nd2 {[%emt 0:00:38]} 38. Qd4 {[%emt 0:01:39]} Qxd4 {[%emt 0:00:07]} 39. Nxd4 {[%emt 0:00:04]} Rc3 {[%emt 0:00:47]} 40. Bg4 {[%emt 0:00:00]} R8c5 {[%emt 0:00:00]} 41. Be2 {[%emt 0:16:40]} Nxb3 {[%emt 0:08:38]} 42. Nxb3 {[%emt 0:00:08]} Rxb3 {[%emt 0:00:02]} 43. Kf2 {[%emt 0:02:45]} Kg7 {[%emt 0:04:20]} 44. Rhh1 {[%emt 0:08:17]} f5 {[%emt 0:02:35]} 45. Bf3 {[%emt 0:04:23]} Rcc3 {[%emt 0:01:12]} 46. Bg2 {[%emt 0:00:25]} f4 {[%emt 0:01:52]} 47. Rhe1 {[%emt 0:04:20]} Kf6 {[%emt 0:02:28]} 48. Bh1 {[%emt 0:07:27]} g5 {[%emt 0:02:42]} 49. Re2 {[%emt 0:01:03]} Rb1 {[%emt 0:01:49]} 50. Ree1 {[%emt 0:00:06]} Rxc1 {[%emt 0:05:34]} 51. Rxc1 {[%emt 0:00:02]} g4 {[%emt 0:00:06]} 52. Bg2 {[%emt 0:01:56]} Ke5 {[%emt 0:00:25]} 53. Ke1 {[%emt 0:00:57]} f3 {[%emt 0:00:19]} 54. Kd2 {[%emt 0:00:14]} Kd4 {[%emt 0:00:58]} 55. e5 {[%emt 0:01:14]} Rd3+ {[%emt 0:00:30]} 56. Kxc2 {[%emt 0:00:26]} Rc3+ {[%emt 0:00:04]} 57. Kd2 {[%emt 0:00:42]} Rxc1 {[%emt 0:00:04]} 0-1

[Event "WYCC 2018 G16"]
[Site "Halkidiki"]
[Date "2018.10.27"]
[Round "8"]
[White "Palma, Maria"]
[Black "Mikic, Ivana"]
[Result "1-0"]
[ECO "E15"]
[WhiteElo "2106"]
[BlackElo "1783"]
[Annotator "NA"]
[PlyCount "55"]
[EventDate "2018.10.20"]
[EventType "swiss"]
[EventCountry "GRE"]
[SourceTitle "playchess.com"]
[Source "ChessBase"]
[SourceQuality "1"]
[TimeControl "40/5400+30:1800+30"]

1. d4 {[%emt 0:00:00]} Nf6 {[%emt 0:00:00]} 2. c4 {[%emt 0:00:00]} e6 {[%emt 0:00:19]} 3. Nf3 {[%emt 0:00:00]} b6 {[%emt 0:00:10]} 4. g3 {[%emt 0:00:05]} d5 {[%emt 0:00:30]} 5. Bg2 {[%emt 0:00:56]} Bb7 {[%emt 0:00:38]} 6. O-O {[%emt 0:00:41]} Be7 {[%emt 0:00:32]} 7. cxd5 {[%emt 0:00:15]} Bxd5 {[%emt 0:02:41]} 8. Nc3 {[%emt 0:03:17]} Bb7 {[%emt 0:01:29]} 9. Re1 {[%emt 0:02:29]} O-O {[%emt 0:00:50]} 10. e4 {[%emt 0:00:40]} c5 {[%emt 0:05:30]} 11. d5 {[%emt 0:01:13]} exd5 {[%emt 0:03:39]} 12. exd5 {[%emt 0:00:18]} Re8 {[%emt 0:03:58]} 13. Ne5 {[%emt 0:03:34]} Bd6 {[%emt 0:03:07]} 14. Nc4 {[%emt 0:03:52]} Rxe1+ {[%emt 0:05:13]} 15. Qxe1 {[%emt 0:00:06]} Na6 {[%emt 0:08:04]} 16. Bg5 {[%emt 0:06:17]} h6 {[%emt 0:03:01]} 17. Bxf6 {[%emt 0:01:22]} gxf6 {[%emt 0:02:38]} 18. Qe4 {[%emt 0:04:31]} Nc7 {[%emt 0:07:33]} 19. Ne3 {[%emt 0:08:46]} Qd7 {[%emt 0:07:32]} 20. Nf5 {[%emt 0:01:51]} Bf8 {[%emt 0:09:38]} 21. Qg4+ {[%emt 0:02:50]} Kh8 {[%emt 0:02:31]} 22. Qh5 {[%emt 0:02:11]} Kg8 {[%emt 0:06:50]} 23. Nxh6+ {[%emt 0:02:10]} Bxh6 {[%emt 0:01:34]} 24. Qxh6 {[%emt 0:00:06]} f5 {[%emt 0:01:42]} 25. Qg5+ {[%emt 0:02:19]} Kh7 {[%emt 0:00:40]} 26. Bh3 {[%emt 0:00:30]} Bc8 {[%emt 0:01:14]} 27. Re1 {[%emt 0:00:14]} Qd6 {[%emt 0:02:48]} 28. Re7 {[%emt 0:01:33]} 1-0